bitfinex/quotes_SOLUSD_20260114
["timestamp","ask_amount","ask_price","bid_price","bid_amount"]
[1768422464705,113.07408949,146.99,146.95,0.70333021]
[1768422466025,0.58303096,146.98,146.95,0.70333021]
[1768422466338,3.17048816,146.96,146.93,12.4]
[1768422466511,0.68326927,146.94,146.9,7.51046834]
[1768422466920,0.68428177,146.99,146.94,0.70333021]
[1768422467134,106.27048816,146.99,146.94,0.70333021]
[1768422467320,0.68326927,146.97,146.94,0.70333021]
[1768422467512,0.68326927,146.97,146.93,7.5091989]
[1768422469539,7.48738812,146.97,146.93,0.70333021]
[1768422472419,0.68326927,146.97,146.93,7.50929058]
[1768422474339,7.46640994,146.98,146.94,0.67384405]
[1768422474529,0.66256513,146.98,146.94,0.67384405]
[1768422476537,110.56607664,146.99,146.95,0.67384405]
[1768422477438,5.79908857,147.02,146.97,0.67384405]
[1768422477439,0.66256513,147.01,146.97,0.67384405]
[1768422477745,0.66256513,147.01,146.97,0.61384407]
[1768422477959,0.66256513,147.01,146.94,19.20545421]
[1768422477960,0.66256513,146.97,146.9,7.61958938]
[1768422478137,0.66256513,146.95,146.89,2.48620639]
[1768422478343,0.66256513,146.94,146.88,6.80804297]
[1768422478527,0.66256513,146.93,146.88,6.80804297]
[1768422479122,0.66256513,146.92,146.87,2.48620639]
[1768422479541,0.66256513,146.92,146.88,0.67384405]
[1768422479944,0.66256513,146.92,146.88,7.48205127]
[1768422480247,7.46899039,146.92,146.88,0.67384405]
[1768422480443,0.66256513,146.91,146.87,0.67384405]
[1768422482245,0.66256513,146.9,146.86,0.67384405]
[1768422482433,0.66256513,146.9,146.85,0.67384405]
[1768422482635,0.66256513,146.89,146.85,0.67384405]
[1768422483140,0.66256513,146.88,146.84,0.77384405]
[1768422483348,0.66256513,146.88,146.85,0.67384405]
[1768422484047,0.66256513,146.88,146.84,0.77384405]
[1768422484249,0.66256513,146.88,146.85,0.67384405]
[1768422484552,7.47101763,146.88,146.84,0.1]
[1768422484757,9.95722402,146.88,146.84,0.1]
[1768422485258,7.47101763,146.88,146.84,0.1]
[1768422485453,7.47101763,146.88,146.84,0.77384405]
[1768422486952,6.80699651,146.91,146.88,0.67384405]
[1768422487535,3.14877152,146.9,146.86,0.67384405]
[1768422487741,0.66256513,146.9,146.86,0.67384405]
[1768422488257,0.66256513,146.88,146.84,0.77384405]
[1768422490051,4.55417466,146.85,146.81,0.67384405]
[1768422490347,7.47244464,146.85,146.81,0.67384405]
[1768422490531,11.36405417,146.85,146.81,0.67384405]
[1768422490726,0.66256513,146.84,146.81,0.67384405]
[1768422490933,11.36405417,146.85,146.81,0.67384405]
[1768422491146,0.66256513,146.88,146.83,0.67384405]
[1768422491347,0.66256513,146.84,146.8,0.67384405]
[1768422491555,0.66256513,146.85,146.8,0.67384405]
[1768422492751,0.66256513,146.85,146.81,0.67384405]
[1768422492931,7.47213993,146.86,146.82,0.67384405]
[1768422494860,11.36374946,146.86,146.82,0.67384405]
[1768422495154,11.36374946,146.86,146.8,0.67384405]
[1768422495155,0.66256513,146.85,146.8,0.67384405]
[1768422495366,4.55417466,146.83,146.79,0.2]
[1768422495657,0.66256513,146.83,146.79,0.87384405]
[1768422496266,4.55417466,146.83,146.79,0.87384405]
[1768422497258,11.36486428,146.83,146.79,0.87384405]
[1768422497760,7.47325475,146.83,146.79,0.87384405]
[1768422498346,11.36486428,146.83,146.79,0.87384405]
[1768422499944,7.47325475,146.83,146.79,0.87384405]
[1768422500151,11.36486428,146.83,146.79,0.87384405]
[1768422501655,28.3913575,146.83,146.79,0.87384405]
[1768422502363,0.66393042,146.82,146.79,0.87384405]
[1768422502550,0.66393042,146.82,146.79,0.2]
[1768422502856,6.8115251,146.81,146.79,0.2]
[1768422503064,6.7815251,146.81,146.79,0.2]
[1768422503459,6.7815251,146.81,146.78,1e-08]
[1768422503460,0.66259216,146.79,146.78,1e-08]
[1768422503646,4.52420169,146.79,146.78,1e-08]
[1768422503850,3.89160953,146.79,146.76,1e-08]
[1768422504066,3.89160953,146.77,146.76,1e-08]
[1768422504267,3.89160953,146.78,146.76,1e-08]
[1768422504562,3.89160953,146.79,146.76,1e-08]
[1768422504942,6.81291729,146.78,146.76,1e-08]
[1768422505552,11.4011148,146.78,146.76,1e-08]
[1768422506955,7.50950527,146.78,146.76,1e-08]
[1768422507150,17.02929177,146.81,146.76,0.66761783]
[1768422507151,0.69658798,146.8,146.76,0.66761783]
[1768422507360,21.61748928,146.81,146.76,0.66761783]
[1768422507574,0.6005478,146.8,146.76,0.66761783]
[1768422508253,13.11658798,146.84,146.78,0.66761782]
[1768422508466,0.69658798,146.84,146.79,0.66761782]
[1768422508770,4.58819751,146.84,146.79,0.66761782]
[1768422509074,6.81059728,146.83,146.79,0.66761782]
[1768422509645,4.49310813,146.82,146.78,0.66761782]
[1768422509850,10.70220681,146.83,146.78,0.66761782]
[1768422510070,11.30275461,146.83,146.78,0.66761782]
[1768422510274,7.41114508,146.83,146.78,0.66761782]
[1768422510976,7.4130237,146.81,146.76,4.55922736]
[1768422511161,7.4130237,146.81,146.77,0.66761782]
[1768422512281,11.30463323,146.81,146.76,1e-08]
[1768422512456,0.69468628,146.8,146.76,0.66761783]
[1768422513784,6.8115251,146.81,146.77,0.66761782]
[1768422514077,24.43818425,146.83,146.78,0.66761782]
[1768422514373,11.30310904,146.83,146.78,0.66761782]
[1768422517480,0.69562757,146.82,146.78,0.66761782]
[1768422517680,4.5872371,146.82,146.78,0.66761782]
[1768422519181,6.8115251,146.81,146.78,0.66761782]
[1768422521264,7.4130237,146.81,146.78,0.66761782]
[1768422521585,7.4130237,146.81,146.77,0.66761782]
[1768422521989,0.69468628,146.8,146.76,0.66761783]
[1768422522483,7.50811308,146.81,146.76,0.66761783]
[1768422522684,7.50811308,146.81,146.77,0.66761782]
[1768422529191,7.4127273,146.8,146.76,3.89160954]
[1768422529373,7.4127273,146.8,146.76,1e-08]
[1768422529374,0.6014986,146.78,146.76,1e-08]
[1768422530577,6.81338148,146.77,146.76,1e-08]
[1768422530993,6.81307858,146.78,146.76,1e-08]
[1768422531200,7.5220191,146.78,146.76,1e-08]
[1768422531372,6.81307858,146.78,146.76,1e-08]
[1768422532186,7.40139736,146.78,146.76,1e-08]
[1768422535300,11.29300689,146.78,146.76,1e-08]
[1768422535669,7.40139736,146.78,146.76,1e-08]
[1768422537177,11.29300689,146.78,146.76,1e-08]
[1768422538299,6.81307858,146.78,146.76,1e-08]
[1768422538500,7.40139736,146.78,146.76,1e-08]
[1768422539885,11.29300689,146.78,146.76,1e-08]
[1768422540199,0.58831878,146.79,146.76,1e-08]
[1768422540398,4.47992831,146.79,146.76,1e-08]
[1768422541292,4.59934383,146.78,146.76,1e-08]
[1768422542288,6.81338148,146.77,146.76,1e-08]
[1768422542793,0.7077343,146.79,146.76,1e-08]
[1768422543002,3.89160953,146.78,146.76,1e-08]
[1768422543998,3.89160953,146.77,146.74,0.1]
[1768422544191,3.89160953,146.75,146.7,26.88701209]
[1768422544397,10.70662754,146.74,146.7,26.88701209]
[1768422544707,11.29494632,146.74,146.7,26.88701209]
[1768422545201,4.48112247,146.72,146.7,26.17821414]
[1768422545404,7.52395853,146.74,146.7,0.70879795]
[1768422545573,11.41556806,146.74,146.7,0.70879795]
[1768422546773,7.52337563,146.75,146.7,0.70879795]
[1768422546978,11.41498516,146.75,146.7,0.70879795]
[1768422548279,7.52337563,146.75,146.7,0.70879795]
[1768422548480,11.41498516,146.75,146.7,0.70879795]
[1768422549392,27.05427361,146.75,146.7,0.70879795]
[1768422549784,10.01849849,146.75,146.7,0.70879795]
[1768422550304,7.52337563,146.75,146.71,0.70879795]
[1768422550682,10.01849849,146.75,146.71,0.70879795]
[1768422551905,7.52337563,146.75,146.71,0.70879795]
[1768422552491,3.20406338,146.76,146.72,0.70879795]
[1768422552808,6.81373877,146.77,146.72,0.70879795]
[1768422552809,0.58831878,146.79,146.74,0.70879795]
[1768422553015,6.81253163,146.79,146.74,0.70879795]
[1768422553504,0.70655209,146.76,146.71,0.70879795]
[1768422553709,0.70655209,146.76,146.72,7.52441477]
[1768422554103,0.70655209,146.76,146.73,7.52403567]
[1768422554511,0.70894052,146.77,146.73,7.52403567]
[1768422555027,0.70894052,146.77,146.74,0.70879795]
[1768422556808,0.70894052,146.78,146.74,7.52344418]
[1768422557996,0.70894052,146.78,146.75,0.70879795]
[1768422559606,0.58831878,146.79,146.75,7.52306987]
[1768422559806,0.58831878,146.79,146.76,0.70879795]
[1768422560306,0.58831878,146.79,146.74,6.81456947]
[1768422560307,0.58831878,146.79,146.75,0.69914175]
[1768422561311,7.40087659,146.79,146.75,0.69914175]
[1768422562493,0.59229408,146.82,146.76,0.69943355]
[1768422562697,7.40335524,146.82,146.77,0.69943355]
[1768422562898,7.40335524,146.82,146.78,0.69943355]
[1768422563137,1.72775137,146.83,146.79,0.69943355]
[1768422563631,2.43155013,146.83,146.79,0.69943355]
[1768422565604,1.72775137,146.83,146.79,6.81242517]
[1768422565935,0.59340912,146.82,146.77,7.51274072]
[1768422566336,0.59340912,146.82,146.78,0.69943355]
[1768422567109,0.59340912,146.82,146.78,3.19455641]
[1768422567435,0.59340912,146.82,146.78,0.69943355]
[1768422568845,0.59340912,146.82,146.78,3.19455641]
[1768422569151,1.72775137,146.83,146.8,0.69943355]
[1768422570434,8.53847457,146.83,146.8,0.69943355]
[1768422571942,9.13188369,146.83,146.8,0.69943355]
[1768422572919,0.70492507,146.8,146.72,7.03026019]
[1768422573122,3.17004791,146.8,146.75,0.69943355]
[1768422573327,0.67492505,146.8,146.75,0.69943355]
[1768422574922,6.81245316,146.79,146.75,0.69943355]
[1768422575122,7.51737823,146.79,146.75,0.69943355]
[1768422581874,10.01234271,146.8,146.76,0.69943355]
[1768422582369,0.70492507,146.8,146.76,0.69943355]
[1768422583291,7.51693706,146.8,146.76,0.69943355]
[1768422583586,10.01205992,146.8,146.76,0.69943355]
[1768422585101,7.51693706,146.8,146.76,0.69943355]
[1768422585264,10.01205992,146.8,146.76,0.69943355]
[1768422586092,2.49512286,146.79,146.76,0.69943355]
[1768422586993,0.70492507,146.78,146.74,0.69943355]
[1768422587177,3.20004793,146.78,146.74,0.69943355]
[1768422587491,2.49512286,146.78,146.75,0.69943355]
[1768422587670,10.01250952,146.79,146.75,0.69943355]
[1768422590672,0.66167007,146.81,146.76,0.7116141]
[1768422590878,3.15679293,146.8,146.76,7.52532729]
[1768422599491,3.15679293,146.8,146.77,0.7116141]
[1768422599691,2.49512286,146.8,146.77,0.7116141]
[1768422599888,3.15679293,146.82,146.77,0.7116141]
[1768422600097,3.15679293,146.82,146.78,0.7116141]
[1768422600413,0.66167007,146.81,146.78,0.7116141]
[1768422600610,0.66167007,146.8,146.77,7.52495135]
[1768422600915,0.66167007,146.81,146.77,7.52495135]
[1768422601118,0.66167007,146.81,146.78,0.7116141]
[1768422601786,9.96759343,146.83,146.78,0.7116141]
[1768422602011,9.96759343,146.83,146.79,0.7116141]
[1768422602214,3.15679293,146.82,146.78,0.7116141]
[1768422602409,0.66167007,146.79,146.76,0.7116141]
[1768422604415,0.66167007,146.8,146.76,0.7116141]
[1768422604595,0.66167007,146.8,146.76,7.52539634]
[1768422604807,0.66167007,146.8,146.77,0.7116141]
[1768422605115,34.05061793,146.85,146.79,0.7116141]
[1768422605116,0.66167007,146.85,146.79,0.7116141]
[1768422605420,0.66167007,146.86,146.81,0.7116141]
[1768422606293,0.66167007,146.85,146.81,0.7116141]
[1768422606813,7.4714145,146.85,146.81,0.7116141]
[1768422607222,9.96653736,146.85,146.81,0.7116141]
[1768422607519,0.66167007,146.84,146.79,0.7116141]
[1768422608724,7.47194782,146.84,146.8,0.7116141]
[1768422609408,0.66167007,146.83,146.79,0.7116141]
[1768422609612,3.15679293,146.83,146.79,0.7116141]
[1768422609913,0.66167007,146.83,146.79,0.7116141]
[1768422610293,26.3307343,146.84,146.79,0.7116141]
[1768422610294,6.81027775,146.84,146.79,0.7116141]
[1768422610593,6.81027775,146.84,146.8,0.7116141]
[1768422610798,7.47194782,146.84,146.8,0.7116141]
[1768422613022,6.809793,146.85,146.81,0.7116141]
[1768422613325,0.66167007,146.85,146.81,0.7116141]
[1768422614004,7.47103998,146.86,146.81,0.7116141]
[1768422614515,7.47103998,146.86,146.82,0.7116141]
[1768422614694,7.47103998,146.86,146.82,0.65161412]
[1768422614887,0.89710868,146.87,146.82,0.65161412]
[1768422615090,0.23543861,146.87,146.83,3.89300082]
[1768422616112,7.04440463,146.87,146.83,3.89300082]
[1768422616593,7.04440463,146.87,146.84,0.7116141]
[1768422616914,7.7060747,146.87,146.83,0.7116141]
[1768422619113,0.23543861,146.87,146.83,0.7116141]
[1768422619290,0.23543861,146.87,146.85,0.7116141]
[1768422620422,0.23543861,146.87,146.85,0.65161412]
[1768422623722,17.73951902,146.91,146.85,0.65161412]
[1768422623900,0.72169874,146.89,146.85,0.66869729]
[1768422624815,0.72169874,146.89,146.85,11.37121775]
[1768422625017,7.52879474,146.91,146.87,0.66869729]
[1768422625217,7.52879474,146.91,146.87,0.60869734]
[1768422625522,7.528234,146.92,146.87,3.89300082]
[1768422625720,7.528234,146.92,146.85,17.02417432]
[1768422625902,7.528234,146.92,146.87,3.89300082]
[1768422626299,0.72169874,146.92,146.88,3.89300082]
[1768422626600,1e-08,146.94,146.88,12.42]
[1768422626816,0.2,146.95,146.93,3.89300082]
[1768422627004,0.2,146.95,146.94,3.89300082]
[1768422627316,0.92169874,146.98,146.94,0.41192603]
[1768422627509,0.92169874,146.98,146.94,4.30492685]
[1768422627702,0.2,146.98,146.95,0.21192603]
[1768422627903,0.2,146.98,146.95,0.15192606]
[1768422628100,0.72169874,146.97,146.88,20.03958938]
[1768422628321,0.72169874,146.96,146.91,3.89300082]
[1768422628727,0.72169874,146.96,146.92,3.89300082]
[1768422629105,0.72169874,146.97,146.92,10.69936456]
[1768422629307,0.72169874,146.97,146.93,3.89300082]
[1768422630013,7.00367367,146.98,146.94,0.15192606]
[1768422630210,7.72537241,146.98,146.94,4.04492688]
[1768422630416,0.92169874,146.98,146.94,4.04492688]
[1768422630623,0.72169874,146.97,146.92,4.04492688]
[1768422630807,0.72169874,146.97,146.93,0.15192606]
[1768422632029,6.80457267,146.96,146.93,0.15192606]
[1768422632215,7.52597545,146.97,146.93,0.15192606]
[1768422634229,0.72169874,146.97,146.93,4.04492688]
[1768422634427,0.2,146.98,146.94,0.15192606]
[1768422634624,0.2,146.98,146.95,4.04492688]
[1768422634823,0.2,146.98,146.96,0.15192606]
[1768422638409,0.2,146.98,146.95,10.84959152]
[1768422638733,0.72169874,146.97,146.93,10.85047841]
[1768422638925,7.72537395,146.98,146.94,0.15192606]
[1768422640032,7.00367521,146.98,146.94,0.15192606]
[1768422640419,0.2,146.98,146.95,0.15192606]
[1768422640920,7.00385093,146.98,146.95,0.15192606]
[1768422641335,0.2,146.98,146.95,0.15192606]
[1768422643827,7.00371938,146.98,146.95,0.15192606]
[1768422644532,7.00371938,146.98,146.93,0.15192606]
[1768422644533,7.72541812,146.98,146.93,0.15192606]
[1768422644729,7.72541812,146.98,146.94,3.89300082]
[1768422644930,7.72541812,146.98,146.94,4.04492688]
[1768422645714,0.72169874,146.97,146.9,0.15192606]
[1768422645916,0.72169874,146.96,146.91,4.04492688]
[1768422646833,0.72169874,146.95,146.89,12.57192606]
[1768422647038,0.72169874,146.94,146.89,16.46492688]
[1768422647217,0.72169874,146.94,146.9,6.80730069]
[1768422648934,0.72169874,146.94,146.89,23.27259035]
[1768422649137,0.72169874,146.93,146.88,10.85314126]
[1768422649437,0.72169874,146.93,146.87,19.20846806]
[1768422649438,0.72169874,146.92,146.87,19.20846806]
[1768422649628,0.72169874,146.92,146.87,19.36039412]
[1768422649829,0.72169874,146.92,146.88,6.80816186]
[1768422651533,0.71013155,146.93,146.89,0.15192606]
[1768422651732,0.71013155,146.93,146.89,4.04492688]
[1768422653341,0.71013155,146.95,146.9,4.04492688]
[1768422653643,0.71013155,146.94,146.9,4.04492688]
[1768422653834,0.71013155,146.94,146.89,10.85246315]
[1768422654941,4.60313237,146.94,146.89,0.15192606]
[1768422655152,0.71013155,146.93,146.89,6.95971372]
[1768422655732,0.71013155,146.93,146.89,10.85271454]
[1768422659130,0.91013155,146.98,146.93,0.15192606]
[1768422659331,0.91013155,146.98,146.97,3.89300082]
[1768422659549,0.2,146.99,146.97,3.83300086]
[1768422659852,0.2,146.99,146.94,0.66397951]
[1768422660056,0.2,146.99,146.94,3.89300082]
[1768422660242,0.2,146.99,146.93,13.06397951]
[1768422660444,0.2,146.99,146.95,3.89300082]
[1768422660649,7.00327111,146.99,146.95,3.89300082]
[1768422661458,7.00327111,146.99,146.97,3.89300082]
[1768422661751,0.71013155,146.98,146.97,3.83300083]
[1768422661951,7.00327111,146.99,146.97,3.83300083]
[1768422662329,24.01123083,146.99,146.9,8.53346192]
[1768422662648,24.01123083,146.99,146.94,3.89300082]
[1768422663451,24.01123083,146.99,146.93,3.89300082]
[1768422664036,0.71013155,146.98,146.93,3.89300082]
[1768422664660,0.71013155,146.98,146.92,7.4703425]
[1768422664968,7.71346675,146.99,146.94,4.55698033]
[1768422666057,0.71013155,146.98,146.94,4.55698033]
[1768422666554,0.71013155,146.98,146.94,0.66397951]
[1768422666746,7.51424123,146.97,146.93,3.89300082]
[1768422666940,7.51424123,146.97,146.93,0.66397951]
[1768422667144,0.71013155,146.97,146.93,4.55698033]
[1768422667553,0.71013155,146.97,146.92,4.55698033]
[1768422668051,0.71013155,146.97,146.92,0.66397951]
[1768422668238,0.71013155,146.96,146.91,0.66397951]
[1768422669163,0.71013155,146.91,146.86,0.66397951]
[1768422669346,0.71013155,146.93,146.89,0.66397951]
[1768422669658,4.60313237,146.93,146.89,0.66397951]
[1768422670059,0.71013155,146.92,146.87,7.47268138]
[1768422670266,0.71013155,146.91,146.87,0.66397951]
[1768422670448,0.71013155,146.9,146.85,22.37375628]
[1768422671056,3.89300082,146.91,146.85,22.37375628]
[1768422671057,3.89300082,146.93,146.87,0.66397951]
[1768422671258,34.0199668,146.98,146.88,0.66397951]
[1768422671259,0.71013155,146.92,146.88,0.66397951]
[1768422671955,0.71013155,146.91,146.86,11.36616397]
[1768422672158,0.71013155,146.91,146.87,0.66397951]
[1768422673157,0.71013155,146.91,146.87,11.36553229]
[1768422673349,0.71013155,146.91,146.87,9.9616308]
[1768422674058,10.00549382,146.93,146.88,0.66397951]
[1768422674369,0.71013155,146.93,146.89,0.66397951]
[1768422674942,6.80513018,146.95,146.9,3.15307884]
[1768422675165,7.51526173,146.95,146.91,0.66397951]
[1768422675360,10.00436106,146.95,146.91,0.66397951]
[1768422675566,0.71013155,146.93,146.9,0.66397951]
[1768422675864,0.71013155,146.93,146.89,0.66397951]
[1768422676461,2.48909933,146.94,146.9,7.47132572]
[1768422676680,0.71013155,146.96,146.92,0.66397951]
[1768422676850,103.1,146.98,146.93,0.66397951]
[1768422676851,9.29294696,146.98,146.93,0.66397951]
[1768422677047,6.80384763,146.98,146.94,0.66397951]
[1768422677244,7.51397918,146.98,146.94,0.66397951]
[1768422677577,0.71013155,146.98,146.94,0.66397951]
[1768422678869,7.51378255,146.98,146.94,0.66397951]
[1768422679378,0.71013155,146.98,146.94,0.66397951]
[1768422680066,0.71013155,146.98,146.94,9.95836802]
[1768422680669,7.51394506,146.98,146.94,3.15307884]
[1768422681180,0.71013155,146.98,146.94,3.15307884]
[1768422681878,0.71013155,146.98,146.94,9.95848003]
[1768422682557,0.2,146.99,146.96,3.15741638]
[1768422682763,0.2,146.99,146.97,0.66831705]
[1768422683951,0.2,146.99,146.97,2.48909933]
[1768422684154,0.2,146.99,146.96,3.15741638]
[1768422684454,7.00363678,146.99,146.96,0.66831705]
[1768422684660,7.68725733,146.99,146.95,0.66831705]
[1768422686574,0.2,146.99,146.96,0.66831705]
[1768422686776,0.16999998,146.99,146.98,0.66831705]
[1768422687083,0.88362055,147.03,146.99,0.66831705]
[1768422687248,0.68362055,147.02,146.99,0.66831705]
[1768422687884,0.2,147.03,147.01,0.66831705]
[1768422688168,0.2,147.03,147.0,2.48909933]
[1768422689862,0.2,147.03,146.99,2.48909933]
[1768422689863,0.68362055,147.02,146.99,2.48909933]
[1768422690263,0.68362055,147.02,146.98,7.47192894]
[1768422690463,0.68362055,147.02,146.99,2.48909933]
[1768422691169,0.88362055,147.03,146.99,3.15741638]
[1768422692163,7.68501643,147.03,146.99,3.15741638]
[1768422692364,7.68501643,147.03,147.0,2.48909933]
[1768422694281,7.68501643,147.03,146.99,0.66831705]
[1768422694581,7.68501643,147.03,147.0,2.48909933]
[1768422694779,0.2,147.03,147.01,3.15741638]
[1768422695364,0.68362055,147.08,147.03,0.66831705]
[1768422695572,7.48264149,147.08,147.04,3.15741638]
[1768422696172,0.68362055,147.07,147.03,3.15741638]
[1768422697058,0.2,147.09,147.05,0.66831705]
[1768422697262,0.2,147.09,147.06,3.15741638]
[1768422697583,0.2,147.09,147.06,0.66831705]
[1768422698080,7.68219209,147.09,147.05,2.48909933]
[1768422698286,7.68219209,147.09,147.05,3.15741638]
[1768422699574,0.68362055,147.08,147.04,0.66831705]
[1768422699775,0.68362055,147.08,147.04,3.15741638]
[1768422700372,6.99857154,147.09,147.05,0.66831705]
[1768422700663,0.2,147.11,147.08,2.48909933]
[1768422700865,0.2,147.11,147.05,6.80021389]
[1768422700866,0.2,147.11,147.1,2.48909933]
[1768422701274,0.2,147.16,147.14,0.66831705]
[1768422701473,0.68362055,147.19,147.15,2.48909933]
[1768422701787,7.47798439,147.19,147.16,6.03e-06]
[1768422701983,6.99448425,147.18,147.16,6.03e-06]
[1768422703465,6.99448425,147.18,147.15,2.48909933]
[1768422704467,6.99448425,147.18,147.16,6.02e-06]
[1768422705873,7.6781048,147.18,147.12,0.66831705]
[1768422706070,0.68362055,147.16,147.12,2.48909933]
[1768422706275,0.68362055,147.15,147.11,2.48909933]
[1768422707483,7.47986902,147.14,147.11,2.48909933]
[1768422707678,0.68362055,147.13,147.09,2.48909933]
[1768422707871,0.68362055,147.13,147.08,2.48909933]
[1768422709288,6.79763442,147.11,147.07,3.15741638]
[1768422709474,6.79763442,147.11,147.08,2.48909933]
[1768422709973,7.48090791,147.12,147.08,2.48909933]
[1768422710770,7.48090791,147.12,147.07,3.15741638]
[1768422711993,7.48090791,147.12,147.08,0.72330642]
[1768422714175,0.65885926,147.11,147.07,3.21240575]
[1768422717518,0.65885926,147.1,147.07,0.72330642]
[1768422717875,12.4,147.09,147.07,0.72330642]
[1768422718786,0.65885926,147.1,147.07,0.72330642]
[1768422719176,12.4,147.09,147.07,0.72330642]
[1768422719378,12.4,147.09,147.06,0.72330642]
[1768422719702,12.4,147.09,147.07,3.21240575]
[1768422720097,12.4,147.09,147.07,2.48909933]
[1768422721291,12.4,147.08,147.07,2.48909933]
[1768422722798,0.65885926,147.12,147.08,0.72330642]
[1768422723010,0.65885926,147.12,147.08,3.21240575]
[1768422723310,12.4,147.11,147.09,0.72330642]
[1768422723485,12.4,147.11,147.09,1e-08]
[1768422724100,0.65885926,147.13,147.1,2.48909933]
[1768422724302,0.65885926,147.16,147.08,6.79891186]
[1768422724510,12.4,147.15,147.13,2.48909933]
[1768422724695,0.2,147.18,147.14,2.48909933]
[1768422724887,12.4,147.17,147.16,2.48909933]
[1768422725088,0.2,147.18,147.09,8.72555637]
[1768422725403,0.2,147.18,147.17,2.48909933]
[1768422725993,13.05885926,147.2,147.17,2.48909933]
[1768422726199,13.05885926,147.2,147.18,2.48909933]
[1768422726400,7.55157564,147.22,147.18,2.48909933]
[1768422726588,13.05885926,147.21,147.18,2.48909933]
[1768422726915,13.05885926,147.21,147.18,2.42909934]
[1768422727098,13.05885926,147.21,147.17,2.48909933]
[1768422727291,0.65885926,147.2,147.17,2.48909933]
[1768422727888,13.05885926,147.2,147.17,2.48909933]
[1768422728386,23.87410477,147.22,147.18,2.48909933]
[1768422728387,0.75885926,147.22,147.18,2.48909933]
[1768422728587,12.4,147.21,147.19,2.48909933]
[1768422728806,12.4,147.21,147.18,2.48909933]
[1768422729008,0.65885926,147.2,147.17,2.48909933]
[1768422730108,0.65885926,147.2,147.16,6.7951531]
[1768422730109,12.4,147.21,147.18,2.48909933]
[1768422730304,0.65885926,147.2,147.17,2.48909933]
[1768422732014,0.65885926,147.19,147.14,2.48909933]
[1768422732313,0.65885926,147.19,147.1,57.78170347]
[1768422732314,0.65885926,147.15,147.1,6.79809653]
[1768422732604,13.05885926,147.16,147.11,2.54805421]
[1768422733312,19.85423185,147.16,147.11,3.93498354]
[1768422733490,0.65885926,147.16,147.11,3.93498354]
[1768422733690,13.05885926,147.16,147.11,3.93498354]
[1768422733904,12.4,147.16,147.12,0.05895488]
[1768422734486,12.4,147.16,147.12,3.93498354]
[1768422734914,12.4,147.16,147.13,3.87602866]
[1768422735121,12.4,147.18,147.15,0.05895488]
[1768422735507,12.4,147.18,147.15,6.85474149]
[1768422735699,12.4,147.18,147.14,6.85504339]
[1768422737014,7.45285438,147.19,147.14,6.85504339]
[1768422738018,13.05885926,147.19,147.14,10.73107205]
[1768422738210,6.79366167,147.2,147.15,0.05895488]
[1768422738518,0.65885926,147.18,147.13,0.05895488]
[1768422738701,0.65885926,147.18,147.13,6.8556289]
[1768422739305,0.65885926,147.18,147.13,0.05895488]
[1768422739619,0.65885926,147.16,147.12,6.79709118]
[1768422739826,0.65885926,147.16,147.11,6.79744773]
[1768422740197,0.65885926,147.15,147.1,0.05895488]
[1768422740500,0.69449835,147.12,147.07,6.79918476]
[1768422740700,0.69449835,147.11,147.07,6.79918476]
[1768422741316,0.69449835,147.11,147.06,6.8587961]
[1768422741514,4.57052701,147.11,147.06,6.8587961]
[1768422741822,11.36817259,147.11,147.06,6.8587961]
[1768422742325,0.69449835,147.11,147.06,6.8587961]
[1768422742551,12.38,147.14,147.08,0.05895488]
[1768422742822,12.38,147.14,147.09,0.05895488]
[1768422742823,13.05940191,147.14,147.09,0.05895488]
[1768422743126,12.38,147.15,147.1,0.05895488]
[1768422743625,13.05940191,147.15,147.1,0.05895488]
[1768422743808,13.05940191,147.15,147.1,6.85705141]
[1768422745024,19.8552391,147.15,147.1,6.85705141]
[1768422745335,13.05940191,147.15,147.1,6.85705141]
[1768422747424,0.67940191,147.17,147.11,0.05895488]
[1768422747604,13.07940191,147.17,147.11,3.93498354]
[1768422748212,13.07940191,147.17,147.12,3.93498354]
[1768422748734,0.67940191,147.17,147.13,6.79671039]
[1768422750104,7.47433205,147.17,147.12,6.85594085]
[1768422750304,0.67940191,147.15,147.1,6.7979178]
[1768422750914,0.67940191,147.15,147.1,10.67394646]
[1768422751419,0.67940191,147.14,147.09,17.08311229]
[1768422752022,0.67940191,147.12,147.06,18.4967343]
[1768422752208,0.67940191,147.12,147.06,10.34364907]
[1768422752815,0.67940191,147.11,147.07,6.7993764]
[1768422754336,0.67940191,147.11,147.07,6.85833128]
[1768422755038,0.67940191,147.12,147.07,17.14302547]
[1768422755532,0.67940191,147.12,147.07,6.85833128]
[1768422755735,0.67940191,147.12,147.06,17.08453792]
[1768422755915,0.67940191,147.11,147.06,6.79984373]
[1768422756424,0.67940191,147.09,147.05,23.50942358]
[1768422756623,0.67940191,147.07,147.05,23.50942358]
[1768422757133,0.64940189,147.07,147.05,23.50942358]
[1768422757565,0.61940189,147.07,147.05,23.50942358]
[1768422758038,12.4,147.08,147.05,23.50942358]
[1768422759522,13.07940191,147.08,147.05,23.50942358]